bitfinex/quotes_BTCUSD_20241024
["timestamp","ask_amount","ask_price","bid_price","bid_amount"]
[1729776787178,0.001652,67561.0,67559.0,0.023]
[1729776787404,0.148016,67560.0,67559.0,0.023]
[1729776787647,0.001652,67561.0,67559.0,0.023]
[1729776788082,0.005,67559.0,67557.0,0.00798838]
[1729776788287,0.005,67559.0,67553.0,0.13468051]
[1729776788288,0.148023,67557.0,67554.0,0.023]
[1729776788491,0.148023,67557.0,67543.0,0.005]
[1729776788492,0.15304,67549.0,67542.0,0.296111]
[1729776788699,0.15304,67549.0,67545.0,0.22218437]
[1729776788943,0.16504,67549.0,67538.0,0.22218437]
[1729776789820,0.16504,67549.0,67539.0,0.13468051]
[1729776791439,0.015,67549.0,67547.0,0.13468051]
[1729776791641,0.015,67549.0,67548.0,0.02905037]
[1729776791642,0.005,67549.0,67548.0,0.02905037]
[1729776791853,0.306064,67553.0,67548.0,0.02905037]
[1729776791854,0.005,67553.0,67552.0,0.148034]
[1729776792061,0.005,67555.0,67552.0,0.13468051]
[1729776792263,0.005,67555.0,67553.0,0.023]
[1729776792466,0.006652,67561.0,67555.0,0.023]
[1729776792668,0.001652,67561.0,67560.0,0.171016]
[1729776793113,0.001652,67561.0,67560.0,0.18328057]
[1729776794047,0.001652,67561.0,67560.0,0.33378438]
[1729776794262,0.001652,67561.0,67560.0,0.34963503]
[1729776794473,0.001652,67561.0,67560.0,0.55620735]
[1729776795800,0.001652,67561.0,67560.0,0.20161903]
[1729776796010,0.149666,67561.0,67560.0,0.05111522]
[1729776796229,0.149666,67561.0,67560.0,0.03526457]
[1729776796435,0.001652,67561.0,67560.0,0.03526457]
[1729776796880,0.001652,67561.0,67560.0,0.18328057]
[1729776797088,0.001652,67561.0,67560.0,0.38985289]
[1729776797748,0.001652,67561.0,67560.0,0.01226457]
[1729776797749,0.81965756,67561.0,67560.0,0.01226457]
[1729776798000,0.72154213,67561.0,67560.0,0.01226457]
[1729776798201,0.72154213,67561.0,67553.0,0.22218437]
[1729776798202,0.163029,67554.0,67553.0,0.22218437]
[1729776798648,0.016652,67561.0,67549.0,0.20657232]
[1729776798856,0.153024,67557.0,67551.0,0.148035]
[1729776799067,0.153024,67557.0,67550.0,0.15050381]
[1729776799068,0.005,67557.0,67550.0,0.15050381]
[1729776799290,0.148027,67556.0,67550.0,0.29854181]
[1729776799494,0.005,67557.0,67551.0,0.023]
[1729776799702,0.30105,67556.0,67551.0,0.023]
[1729776799908,0.449089,67554.0,67551.0,0.023]
[1729776800106,0.148032,67553.0,67548.0,0.023826]
[1729776800315,0.148035,67552.0,67549.0,0.023]
[1729776800559,0.15304,67549.0,67548.0,0.000826]
[1729776801486,0.005,67549.0,67548.0,0.000826]
[1729776802101,0.005,67549.0,67548.0,0.01319972]
[1729776802317,0.005,67552.0,67548.0,0.01319972]
[1729776802538,0.005,67556.0,67552.0,0.023]
[1729776802762,0.015,67556.0,67552.0,0.023]
[1729776802940,0.005,67556.0,67552.0,0.023]
[1729776803378,0.01,67557.0,67549.0,0.15050381]
[1729776803379,0.015,67557.0,67550.0,0.023]
[1729776803587,0.005,67556.0,67550.0,0.17350381]
[1729776804211,0.005,67556.0,67552.0,0.023]
[1729776804563,0.015,67557.0,67552.0,0.023]
[1729776804770,0.005,67557.0,67552.0,0.023]
[1729776805115,0.005,67557.0,67554.0,0.023]
[1729776805338,0.005,67557.0,67556.0,0.148025]
[1729776805775,0.005,67557.0,67556.0,0.16032594]
[1729776806195,0.005,67557.0,67556.0,0.01230094]
[1729776806823,0.015,67557.0,67556.0,0.01230094]
[1729776807004,0.005,67557.0,67556.0,0.16032594]
[1729776807263,0.005,67557.0,67556.0,0.18557752]
[1729776807439,0.001652,67561.0,67556.0,0.18557752]
[1729776807440,0.005,67560.0,67559.0,0.148018]
[1729776807650,0.005,67558.0,67557.0,0.171021]
[1729776808057,0.005,67558.0,67557.0,0.023]
[1729776808307,0.005,67558.0,67557.0,0.0415832]
[1729776808516,0.001652,67561.0,67560.0,0.171016]
[1729776809565,0.001652,67561.0,67560.0,0.18328057]
[1729776809768,0.001652,67561.0,67560.0,0.03526457]
[1729776810176,0.001652,67561.0,67560.0,0.18328057]
[1729776810378,0.001652,67561.0,67560.0,0.20853215]
[1729776810586,0.001652,67561.0,67560.0,0.06051615]
[1729776810784,0.001652,67561.0,67560.0,0.20853215]
[1729776811963,0.001652,67561.0,67560.0,0.06051615]
[1729776812381,0.154666,67561.0,67560.0,0.01226457]
[1729776812592,0.154666,67561.0,67548.0,0.000826]
[1729776812593,0.01,67557.0,67548.0,0.000826]
[1729776812825,0.15304,67549.0,67548.0,0.000826]
[1729776814409,0.16004,67549.0,67548.0,0.000826]
[1729776814586,0.16304,67549.0,67548.0,0.000826]
[1729776816315,0.16504,67549.0,67548.0,0.000826]
[1729776816731,0.16304,67549.0,67548.0,0.000826]
[1729776818028,0.16504,67549.0,67548.0,0.000826]
[1729776818288,0.56556125,67549.0,67548.0,0.000826]
[1729776818453,0.60981751,67549.0,67548.0,0.000826]
[1729776818661,0.45531022,67549.0,67548.0,0.000826]
[1729776819570,0.961499,67549.0,67548.0,0.000826]
[1729776819785,0.9614651,67549.0,67548.0,0.000826]
[1729776820001,1.0372651,67549.0,67548.0,0.000826]
[1729776820223,1.0372651,67549.0,67518.0,0.13476641]
[1729776820224,0.022,67532.0,67517.0,0.22218437]
[1729776820437,0.53464722,67532.0,67517.0,0.22218437]
[1729776820648,0.57890544,67532.0,67531.0,0.01252841]
[1729776820876,0.153108,67518.0,67517.0,0.22218437]
[1729776821294,0.005,67508.0,67507.0,0.22218437]
[1729776821511,0.005,67508.0,67503.0,0.14814]
[1729776821512,0.005,67504.0,67503.0,0.14814]
[1729776821723,0.005,67503.0,67502.0,0.148143]
[1729776823189,0.005,67507.0,67506.0,0.148134]
[1729776823428,0.005,67507.0,67506.0,0.28290041]
[1729776823840,0.005,67513.0,67512.0,0.148121]
[1729776824460,0.005,67520.0,67512.0,0.023]
[1729776824714,0.01,67529.0,67528.0,0.148086]
[1729776824924,0.005,67529.0,67528.0,0.148086]
[1729776825137,0.22218437,67535.0,67527.0,0.57903141]
[1729776825138,0.005,67528.0,67527.0,0.57903141]
[1729776825357,0.005,67534.0,67527.0,0.47477819]
[1729776825577,0.005,67534.0,67533.0,0.148075]
[1729776825795,0.01,67532.0,67531.0,0.13476641]
[1729776826040,0.005,67534.0,67533.0,0.148075]
[1729776826247,0.296113,67542.0,67531.0,0.13476641]
[1729776826248,0.005,67532.0,67531.0,0.13476641]
[1729776826448,0.005,67532.0,67527.0,0.04383478]
[1729776826449,0.005,67535.0,67533.0,0.20676501]
[1729776826666,0.005,67535.0,67534.0,0.148073]
[1729776827101,0.005,67537.0,67528.0,0.20676501]
[1729776827336,0.005,67537.0,67536.0,0.148069]
[1729776827751,0.22218437,67547.0,67536.0,0.148069]
[1729776827752,0.005,67543.0,67536.0,0.296137]
[1729776827952,0.005,67543.0,67539.0,0.20676501]
[1729776828156,0.005,67543.0,67542.0,0.171056]
[1729776830489,0.248041,67549.0,67542.0,0.171056]
[1729776830490,0.248041,67549.0,67548.0,0.171042]
[1729776830491,0.06593269,67549.0,67548.0,0.171042]
[1729776830712,0.06593269,67549.0,67548.0,0.52831082]
[1729776830923,0.06593269,67549.0,67548.0,0.60941082]
[1729776831400,0.06593269,67549.0,67548.0,0.70941082]
[1729776832232,0.001652,67561.0,67560.0,0.171016]
[1729776832461,0.001652,67561.0,67560.0,0.62828482]
[1729776832672,0.001652,67561.0,67560.0,0.55821981]
[1729776834129,0.001652,67561.0,67560.0,0.76498482]
[1729776834548,0.001652,67561.0,67560.0,0.83998482]
[1729776835383,0.001652,67561.0,67560.0,0.63321981]
[1729776835588,0.001652,67561.0,67560.0,0.62821981]
[1729776836409,0.001652,67561.0,67560.0,1.05716919]
[1729776836629,0.001652,67561.0,67560.0,0.62821981]
[1729776836840,0.001652,67561.0,67560.0,0.83498482]
[1729776837272,0.001652,67561.0,67560.0,0.83998482]
[1729776837718,0.001678,67577.0,67576.0,0.35474601]
[1729776838828,0.001678,67577.0,67576.0,0.37774601]
[1729776839798,0.001678,67577.0,67576.0,0.35474601]
[1729776839799,0.006678,67577.0,67576.0,0.35474601]
[1729776840237,0.006678,67577.0,67576.0,0.20676501]
[1729776840438,0.006678,67577.0,67576.0,0.35474601]
[1729776840903,0.006678,67577.0,67566.0,0.296004]
[1729776840904,0.15299,67572.0,67566.0,0.50276901]
[1729776841112,0.297639,67577.0,67560.0,0.1]
[1729776841113,0.005,67566.0,67560.0,0.1]
[1729776841326,0.005,67565.0,67564.0,0.148007]
[1729776842160,0.01,67573.0,67562.0,0.02221844]
[1729776842161,0.005,67569.0,67562.0,0.02221844]
[1729776842369,0.005,67572.0,67568.0,0.20676501]
[1729776842567,0.22218437,67570.0,67569.0,0.16961234]
[1729776842789,0.005,67571.0,67569.0,0.02161634]
[1729776843201,0.005,67571.0,67570.0,0.147994]
[1729776843376,0.005,67571.0,67570.0,0.17021244]
[1729776844210,0.005,67571.0,67570.0,0.02221844]
[1729776844924,0.005,67571.0,67570.0,0.17021244]
[1729776845060,0.005,67571.0,67570.0,0.02221844]
[1729776845275,0.005,67571.0,67570.0,0.17021244]
[1729776845473,0.005,67571.0,67570.0,0.02221844]
[1729776845876,0.005,67571.0,67570.0,0.17021244]
[1729776846930,0.300924,67585.0,67575.0,0.147983]
[1729776846931,0.005,67576.0,67575.0,0.147983]
[1729776847136,0.23718437,67579.0,67576.0,0.170981]
[1729776847336,0.015,67579.0,67576.0,0.170981]
[1729776848311,0.005,67581.0,67576.0,0.170981]
[1729776848531,0.23718437,67585.0,67576.0,0.3244443]
[1729776848739,0.005,67584.0,67576.0,0.32148481]
[1729776850233,0.005,67584.0,67576.0,0.170981]
[1729776850402,0.52811037,67585.0,67576.0,0.147981]
[1729776850403,0.005,67579.0,67576.0,0.147981]
[1729776850579,0.005,67579.0,67576.0,0.19319944]
[1729776852864,0.00165,67591.0,67576.0,0.58127878]
[1729776853080,0.22218437,67590.0,67585.0,0.30557706]
[1729776853292,0.2237587,67598.0,67597.0,0.170935]
[1729776853518,0.00165,67601.0,67597.0,0.170935]
[1729776853519,0.00165,67601.0,67600.0,0.170928]
[1729776853739,0.00165,67601.0,67600.0,0.27388612]
[1729776854006,0.00165,67601.0,67600.0,0.69566393]
[1729776854216,0.00165,67601.0,67600.0,0.71788237]
[1729776854431,0.00165,67601.0,67600.0,0.65490483]
[1729776854643,0.00165,67601.0,67600.0,0.77700483]
[1729776854854,0.00165,67601.0,67600.0,0.85410483]
[1729776855943,0.00165,67617.0,67612.0,0.35415658]
[1729776856171,0.00165,67617.0,67612.0,0.54927673]
[1729776857254,0.00165,67617.0,67612.0,0.65427673]
[1729776858230,0.001678,67619.0,67615.0,0.005]
[1729776858430,0.001676,67624.0,67619.0,0.270887]
[1729776858431,0.22218437,67623.0,67619.0,0.270887]
[1729776858628,0.22218437,67623.0,67619.0,0.44360925]
[1729776858856,0.001676,67624.0,67619.0,0.57510925]
[1729776859534,0.001676,67624.0,67623.0,0.152878]
[1729776859702,0.001678,67628.0,67627.0,0.47712358]
[1729776859855,0.001678,67628.0,67627.0,0.62762739]
[1729776860058,0.001678,67628.0,67627.0,0.64924373]
[1729776860252,0.001678,67628.0,67627.0,0.65424373]
[1729776860686,0.001678,67628.0,67627.0,0.8764281]
[1729776860882,0.001678,67628.0,67627.0,0.65424373]
[1729776861088,0.22718437,67644.0,67627.0,0.65424373]
[1729776861089,0.22218437,67644.0,67632.0,0.005]
[1729776861308,0.22218437,67644.0,67626.0,0.295744]
[1729776861309,0.22218437,67644.0,67637.0,0.47710258]
[1729776861508,0.22718437,67651.0,67637.0,0.62760639]
[1729776861776,0.22218437,67650.0,67643.0,0.005]
[1729776861976,0.22218437,67650.0,67644.0,0.6305466]
[1729776862189,0.011674,67659.0,67644.0,0.63259039]
[1729776862375,0.001674,67659.0,67644.0,0.63259039]
[1729776862576,0.001674,67659.0,67658.0,0.37705658]
[1729776862976,0.001674,67659.0,67658.0,0.52756039]
[1729776864493,0.001674,67659.0,67653.0,0.295624]
[1729776864494,0.016674,67659.0,67653.0,0.170811]
[1729776864701,0.005,67658.0,67656.0,0.023]
[1729776864878,0.005,67658.0,67652.0,0.50188358]
[1729776865106,0.005,67658.0,67654.0,0.14781]
[1729776865314,0.016674,67659.0,67658.0,0.147802]
[1729776865535,0.016674,67659.0,67657.0,0.20625458]
[1729776866802,0.147802,67658.0,67653.0,0.15050381]
[1729776867018,0.005,67654.0,67649.0,0.37000537]
[1729776867654,0.005,67654.0,67651.0,0.20625458]
[1729776869208,0.005,67654.0,67651.0,0.35407058]
[1729776869462,0.005,67654.0,67651.0,0.20625458]
[1729776870305,0.007,67651.0,67645.0,0.20625458]
[1729776870630,0.005,67648.0,67646.0,0.22218437]
[1729776870838,0.005,67652.0,67646.0,0.37268818]
[1729776871050,0.005,67657.0,67651.0,0.20625458]
[1729776871258,0.001674,67659.0,67656.0,0.20625458]
[1729776871481,0.001674,67659.0,67658.0,0.170802]
[1729776871681,0.001674,67659.0,67658.0,0.32130581]
[1729776873880,0.001674,67659.0,67658.0,0.64349018]
[1729776874082,0.001674,67665.0,67661.0,0.005]
[1729776874284,0.001674,67665.0,67664.0,0.47704358]
[1729776874494,0.001674,67666.0,67665.0,0.147786]
[1729776874695,0.22218437,67678.0,67672.0,0.29554]
[1729776874894,0.22218437,67678.0,67677.0,0.37701458]
[1729776875141,0.015,67685.0,67680.0,0.147754]
[1729776875351,0.015,67685.0,67680.0,0.29825781]
[1729776875986,0.105,67682.0,67679.0,0.147754]
[1729776876832,0.105,67682.0,67678.0,0.147757]
[1729776877064,0.105,67682.0,67677.0,0.50177158]
[1729776877065,0.105,67682.0,67679.0,0.147755]
[1729776877704,0.105,67682.0,67680.0,0.147754]
[1729776877906,0.105,67682.0,67677.0,0.50177158]
[1729776878106,0.105,67682.0,67678.0,0.147757]
[1729776878344,0.147755,67680.0,67677.0,0.35675839]
[1729776878552,0.105,67682.0,67680.0,0.147754]
[1729776878553,0.019176,67681.0,67680.0,0.147754]
[1729776878762,0.014176,67681.0,67680.0,0.29825781]
[1729776879076,0.014176,67681.0,67680.0,0.32125781]
[1729776881250,0.014176,67681.0,67680.0,0.33243301]
[1729776886426,0.014176,67681.0,67680.0,0.46661339]
[1729776887538,0.014176,67681.0,67680.0,0.16167901]
[1729776887747,0.014176,67681.0,67680.0,0.0111752]
[1729776887888,0.019176,67681.0,67680.0,0.0111752]
[1729776888086,0.166928,67681.0,67676.0,0.13418038]
[1729776888293,0.005,67680.0,67677.0,0.01120239]
[1729776888700,0.162754,67680.0,67677.0,0.01120239]
[1729776888895,0.005,67679.0,67677.0,0.01120239]
[1729776889101,0.162758,67678.0,67677.0,0.01120239]
[1729776889352,0.147763,67676.0,67672.0,0.13418038]
[1729776889906,0.005,67675.0,67672.0,0.13418038]
[1729776890110,0.005,67675.0,67671.0,0.147773]
[1729776890309,0.152765,67675.0,67673.0,0.13418038]
[1729776890751,0.005,67675.0,67673.0,0.13418038]
[1729776890936,0.005,67674.0,67671.0,0.15050381]
[1729776891154,0.005,67671.0,67669.0,0.13418038]
[1729776891348,0.005,67671.0,67662.0,0.51776737]
[1729776891349,0.005,67670.0,67667.0,0.295563]
[1729776891553,0.005,67670.0,67667.0,0.13418038]
[1729776891771,0.005,67670.0,67668.0,0.01128396]
[1729776891995,0.005,67670.0,67669.0,0.001646]
[1729776892229,0.152775,67670.0,67669.0,0.0129209]
[1729776892667,0.005,67670.0,67664.0,0.147789]
[1729776892869,0.005,67670.0,67667.0,0.13418038]
[1729776893290,0.005,67670.0,67668.0,0.00940481]
[1729776893737,0.005,67669.0,67668.0,0.00940481]
[1729776893943,0.152778,67669.0,67668.0,0.00940481]
[1729776894154,0.005,67669.0,67668.0,0.00940481]
[1729776894379,0.162778,67669.0,67668.0,0.00940481]
[1729776894583,0.002,67663.0,67662.0,0.23023262]
[1729776894823,0.005,67664.0,67662.0,0.23023262]
[1729776895041,0.005,67664.0,67662.0,0.00945921]
[1729776895249,0.005,67663.0,67662.0,0.00945921]
[1729776895458,0.005,67663.0,67662.0,0.14363959]
[1729776895659,0.005,67664.0,67662.0,0.13418038]
[1729776895838,0.005,67664.0,67662.0,0.29143259]
[1729776895991,0.005,67664.0,67662.0,0.14363959]
[1729776896199,0.005,67664.0,67663.0,0.147791]
[1729776896407,0.005,67664.0,67663.0,0.00945014]
[1729776896611,0.005,67669.0,67663.0,0.15995395]
[1729776896830,0.015,67669.0,67668.0,0.13418038]
[1729776897203,0.015,67669.0,67668.0,0.14358519]
[1729776897612,0.015,67669.0,67668.0,0.00940481]
[1729776897817,0.162778,67669.0,67668.0,0.00940481]
[1729776898012,0.007,67665.0,67664.0,0.15050381]
[1729776898390,0.005,67665.0,67664.0,0.15050381]
[1729776898579,0.005,67665.0,67664.0,0.29829281]
[1729776898817,0.005,67665.0,67664.0,0.59386981]
[1729776898943,0.005,67669.0,67664.0,0.44608081]
[1729776899158,0.005,67665.0,67664.0,0.59386981]
[1729776900415,0.005,67665.0,67664.0,0.29829281]
[1729776900619,0.005,67669.0,67664.0,0.15050381]
[1729776900823,0.005,67669.0,67665.0,0.147786]
[1729776900824,0.015,67669.0,67665.0,0.147786]
[1729776900999,0.005,67669.0,67668.0,0.14778]
[1729776901220,0.015,67669.0,67668.0,0.14778]
[1729776901622,0.01,67679.0,67669.0,0.295556]
[1729776901829,0.24136037,67681.0,67680.0,0.147754]
[1729776902152,0.22218437,67684.0,67675.0,0.29553]
[1729776902428,0.22218437,67684.0,67669.0,0.104]
[1729776902429,0.002,67675.0,67665.0,0.13418038]
[1729776902632,0.005,67687.0,67665.0,0.13418038]
[1729776902633,0.14977,67673.0,67672.0,0.22218437]
[1729776902829,0.297547,67672.0,67662.0,0.22218437]
[1729776903037,0.29553,67675.0,67665.0,0.13418038]
[1729776903241,0.147772,67672.0,67667.0,0.14778]
[1729776903595,0.29553,67675.0,67668.0,0.14778]
[1729776903795,0.147769,67673.0,67668.0,0.14778]
[1729776904363,0.14777,67673.0,67667.0,0.295565]
[1729776904570,0.147767,67674.0,67667.0,0.295565]
[1729776904796,0.000823,67681.0,67673.0,0.13418038]
[1729776904955,0.147764,67676.0,67673.0,0.13418038]
[1729776905131,0.295508,67680.0,67671.0,0.147772]
[1729776905329,0.002,67675.0,67669.0,0.13418038]
[1729776905532,0.002,67675.0,67669.0,0.37268818]
[1729776905745,0.002,67677.0,67664.0,0.13582638]
[1729776905961,0.002,67679.0,67665.0,0.15050381]
[1729776906175,0.14777,67673.0,67665.0,0.15050381]
[1729776906361,0.147767,67674.0,67669.0,0.147777]
[1729776907041,0.22418437,67678.0,67665.0,0.15050381]
[1729776907316,0.147767,67674.0,67665.0,0.15050381]
[1729776907537,0.000823,67681.0,67665.0,0.15050381]
[1729776907538,0.000823,67681.0,67669.0,0.22218437]
[1729776907740,0.000823,67681.0,67664.0,0.001646]
[1729776907741,0.000823,67681.0,67680.0,0.28193438]
[1729776907909,0.000823,67681.0,67680.0,0.31012782]
[1729776908929,0.000823,67681.0,67680.0,0.682816]
[1729776909158,0.000823,67681.0,67680.0,0.58363163]
[1729776909563,0.000823,67681.0,67680.0,0.58863163]
[1729776910960,0.000823,67681.0,67680.0,0.58363163]
[1729776911649,0.000823,67681.0,67680.0,0.58863163]
[1729776913503,0.000823,67681.0,67680.0,0.58363163]
[1729776913734,0.000823,67681.0,67680.0,0.29825781]
[1729776913932,0.000823,67681.0,67673.0,0.295538]
[1729776914146,0.000823,67681.0,67674.0,0.44603781]
[1729776914352,0.000823,67681.0,67680.0,0.147754]
[1729776914563,0.000823,67681.0,67676.0,0.13418038]
[1729776914775,0.14776,67677.0,67669.0,0.147777]
[1729776915088,0.000823,67681.0,67672.0,0.147771]
[1729776915278,0.000823,67681.0,67680.0,0.28193438]
[1729776915412,0.000823,67681.0,67680.0,0.43243819]
[1729776916228,0.000823,67681.0,67680.0,0.45543819]
[1729776916427,0.000823,67681.0,67680.0,0.55543819]
[1729776916899,0.000823,67681.0,67680.0,0.56043819]
[1729776918845,0.000823,67681.0,67674.0,0.005]
[1729776919065,0.000823,67681.0,67664.0,0.001646]
[1729776919066,0.22418437,67678.0,67665.0,0.13418038]
[1729776919279,0.002,67678.0,67665.0,0.13418038]
[1729776919487,0.14777,67673.0,67666.0,0.15992675]
[1729776919692,0.147765,67675.0,67666.0,0.15992675]
[1729776919951,0.147766,67675.0,67667.0,0.147781]
[1729776920153,0.147765,67675.0,67668.0,0.147779]
[1729776920373,0.000823,67681.0,67668.0,0.15718281]
[1729776920374,0.147756,67679.0,67668.0,0.15718281]
[1729776920591,0.147765,67675.0,67669.0,0.147778]
[1729776920800,0.295509,67680.0,67669.0,0.295554]
[1729776921021,0.295509,67680.0,67670.0,0.147775]
[1729776921244,0.000823,67681.0,67675.0,0.20593841]
[1729776921466,0.22300737,67681.0,67678.0,0.147757]
[1729776921666,0.22300737,67681.0,67676.0,0.0093323]
[1729776921872,0.22300737,67681.0,67674.0,0.295533]
[1729776921873,0.000823,67681.0,67680.0,0.35369241]
[1729776922289,0.000823,67681.0,67680.0,0.36298846]
[1729776923168,0.000823,67681.0,67680.0,0.53649227]
[1729776924618,0.000823,67681.0,67680.0,0.63649227]
[1729776924819,0.000823,67681.0,67680.0,0.64149227]
[1729776926817,0.000823,67681.0,67680.0,0.63649227]
[1729776927073,0.000823,67681.0,67680.0,0.64149227]
[1729776927902,0.000823,67681.0,67680.0,0.84743068]
[1729776928114,0.000823,67688.0,67687.0,0.49167641]
[1729776928322,0.0178026,67699.0,67698.0,0.37665241]
[1729776928740,0.0178026,67699.0,67698.0,0.49078539]
[1729776928951,0.0178026,67699.0,67698.0,0.63438539]
[1729776929161,0.0178026,67699.0,67698.0,0.71318539]
[1729776929372,0.0178026,67699.0,67698.0,0.91720439]
[1729776929579,0.0178026,67699.0,67698.0,0.92492251]
[1729776930193,0.0178026,67699.0,67698.0,0.72090351]
[1729776931922,0.0178026,67699.0,67698.0,0.69405241]
[1729776932996,0.0178026,67699.0,67698.0,0.56045241]
[1729776934146,0.0178026,67699.0,67698.0,0.247714]
[1729776934350,0.0178026,67699.0,67698.0,0.147714]
[1729776934765,0.0178026,67699.0,67698.0,0.29821781]
[1729776935005,0.0178026,67699.0,67697.0,0.147715]
[1729776935255,0.0178026,67699.0,67684.0,0.005]
[1729776935256,0.0178026,67699.0,67696.0,0.147718]
[1729776935641,0.0178026,67699.0,67697.0,0.147717]
[1729776936225,0.0178026,67699.0,67695.0,0.295442]
[1729776936424,0.0178026,67699.0,67695.0,0.15050381]
[1729776936626,0.0178026,67699.0,67697.0,0.147715]
[1729776936856,0.0178026,67699.0,67697.0,0.147716]
[1729776937795,0.0178026,67699.0,67698.0,0.147714]
[1729776938233,0.0178026,67699.0,67698.0,0.32121781]
[1729776938403,0.0178026,67699.0,67698.0,0.62715622]
[1729776940273,0.0178026,67699.0,67698.0,0.42121781]
[1729776940469,0.0178026,67699.0,67698.0,0.32121781]
[1729776940908,0.0186276,67699.0,67698.0,0.52715622]
[1729776941111,0.0186276,67699.0,67698.0,0.62715622]
[1729776941544,0.0186276,67699.0,67698.0,0.70315622]
[1729776942278,0.0186276,67699.0,67698.0,0.70815622]
[1729776943091,0.001674,67722.0,67704.0,0.2954]
[1729776943334,0.22218437,67712.0,67711.0,0.147686]
[1729776943558,0.001674,67722.0,67712.0,0.270684]
[1729776943559,0.22218437,67718.0,67712.0,0.270684]
[1729776943948,0.22218437,67718.0,67712.0,0.42118781]
[1729776944397,0.001674,67722.0,67712.0,0.32118781]
[1729776944616,0.001674,67722.0,67712.0,0.29818781]
[1729776946834,0.001674,67722.0,67712.0,0.40114109]
[1729776947088,0.001674,67722.0,67712.0,0.39818781]
[1729776952303,0.001674,67722.0,67712.0,0.29818781]
[1729776952569,0.001674,67722.0,67712.0,0.43223197]
[1729776953742,0.001674,67722.0,67712.0,0.53223197]
[1729776953970,0.001674,67722.0,67712.0,0.53723197]
[1729776955318,0.22218437,67720.0,67712.0,0.39818781]
[1729776956056,0.22218437,67720.0,67712.0,0.29818781]
[1729776956254,0.22218437,67720.0,67709.0,0.00799703]
[1729776956255,0.297345,67718.0,67709.0,0.295381]
[1729776956474,0.002,67711.0,67708.0,0.295385]
[1729776956679,0.295345,67718.0,67708.0,0.44588881]
[1729776956680,0.002,67714.0,67708.0,0.44588881]
[1729776956908,0.147675,67716.0,67711.0,0.147684]
[1729776957121,0.147675,67717.0,67712.0,0.147684]
[1729776957334,0.297345,67718.0,67710.0,0.13404416]
[1729776957335,0.002,67715.0,67710.0,0.13404416]
[1729776957539,0.295355,67716.0,67703.0,0.22218437]
[1729776957540,0.002,67706.0,67703.0,0.22218437]
[1729776957740,0.297368,67712.0,67703.0,0.51759137]
[1729776957892,0.147691,67709.0,67704.0,0.147699]
[1729776958125,0.080476,67713.0,67704.0,0.295403]
[1729776958477,0.147684,67712.0,67707.0,0.13404416]
[1729776958623,0.080476,67713.0,67707.0,0.13404416]
[1729776959225,0.080476,67713.0,67707.0,0.42943016]
[1729776959416,0.001676,67713.0,67712.0,0.147684]
[1729776959553,0.001676,67713.0,67711.0,0.28173016]
[1729776960154,0.001676,67713.0,67711.0,0.28172916]
[1729776960352,0.003676,67713.0,67709.0,0.295381]
[1729776960624,0.002,67711.0,67710.0,0.147686]
[1729776961283,0.001676,67713.0,67712.0,0.147684]
[1729776961491,0.001676,67713.0,67712.0,0.60387055]
[1729776962516,0.001676,67713.0,67712.0,0.40318781]
[1729776962716,0.001676,67713.0,67712.0,0.39818781]
[1729776962919,0.001676,67713.0,67712.0,0.42551817]
[1729776964104,0.001676,67713.0,67712.0,0.42851139]
[1729776964528,0.001676,67713.0,67712.0,0.39818781]
[1729776968622,0.001676,67713.0,67712.0,0.29818781]
[1729776970773,0.001676,67713.0,67712.0,0.30114123]
[1729776970979,0.001676,67713.0,67712.0,0.29818781]
[1729776975295,0.001676,67713.0,67703.0,0.50108874]
[1729776975520,0.001676,67713.0,67709.0,0.295378]
[1729776975799,0.001676,67713.0,67709.0,0.443067]
[1729776976015,0.001676,67713.0,67711.0,0.147686]
[1729776976219,0.001676,67713.0,67710.0,0.147688]
[1729776976429,0.001676,67713.0,67709.0,0.295378]
[1729776976638,0.001676,67713.0,67710.0,0.147688]
[1729776976852,0.001676,67713.0,67710.0,0.295377]
[1729776977082,0.001676,67713.0,67711.0,0.147685]
[1729776977613,0.001676,67713.0,67712.0,0.147684]
[1729776977842,0.001676,67713.0,67710.0,0.147686]
[1729776978034,0.001676,67713.0,67711.0,0.147685]
[1729776978211,0.001676,67713.0,67708.0,0.20568274]
[1729776978414,0.001676,67713.0,67708.0,0.35618655]
[1729776979125,0.002,67711.0,67708.0,0.35618655]
[1729776979327,0.001676,67713.0,67708.0,0.35618655]
[1729776980506,0.003676,67713.0,67708.0,0.35618655]
[1729776980895,0.002,67711.0,67708.0,0.35618655]
[1729776981095,0.002,67709.0,67708.0,0.35618655]
[1729776981333,0.002,67709.0,67708.0,0.20568274]
[1729776981523,0.001676,67713.0,67695.0,0.0779]
[1729776981524,0.002,67708.0,67695.0,0.20568274]
[1729776981744,0.002,67708.0,67703.0,0.147703]
[1729776981946,0.147696,67707.0,67701.0,0.147706]
[1729776982097,0.147696,67707.0,67701.0,0.44591981]
[1729776982449,0.147696,67707.0,67703.0,0.147703]
[1729776982450,0.002,67704.0,67703.0,0.147703]
[1729776983564,0.002,67703.0,67702.0,0.28181389]
[1729776983748,0.29888437,67711.0,67702.0,0.1572114]
[1729776983971,0.002,67703.0,67692.0,0.295452]
[1729776984172,0.002,67704.0,67702.0,0.22218437]
[1729776984375,0.0767,67711.0,67694.0,0.13410989]
[1729776984376,0.005,67714.0,67703.0,0.35629426]
[1729776984543,0.147686,67711.0,67710.0,0.13410989]
[1729776984743,0.22218437,67712.0,67710.0,0.13410989]
[1729776984947,0.001676,67713.0,67712.0,0.147684]
[1729776985919,0.001676,67713.0,67710.0,0.13410989]
[1729776985920,0.147686,67712.0,67710.0,0.13410989]
[1729776986047,0.001676,67713.0,67706.0,0.13410989]
[1729776986048,0.002,67711.0,67706.0,0.13410989]